[Event "Early-Titled-Tuesday-Blitz-November-28-2023"]
[Site "Chess.com"]
[Date "2023.11.28"]
[Round "7"]
[White "lluiss"]
[Black "SimplyDevina"]
[Result "0-1"]
[WhiteElo "2213"]
[BlackElo "2386"]
[TimeControl "180+1"]
[EndTime "9:25:35 PST"]
[Termination "SimplyDevina won on time"]

1. Nf3 {[%clk 0:03:00.9]} 1... d5 {[%clk 0:02:58.8]} 2. d4 {[%clk 0:02:59.8]}
2... Nf6 {[%clk 0:02:58.9]} 3. c4 {[%clk 0:02:59.4]} 3... e6 {[%clk 0:02:57.8]}
4. cxd5 {[%clk 0:02:59.3]} 4... exd5 {[%clk 0:02:58]} 5. Nc3 {[%clk 0:02:59.8]}
5... c6 {[%clk 0:02:57.8]} 6. Qc2 {[%clk 0:02:59.7]} 6... Bd6 {[%clk 0:02:54.1]}
7. Bg5 {[%clk 0:02:59.3]} 7... O-O {[%clk 0:02:53.5]} 8. e3 {[%clk 0:02:59.3]}
8... h6 {[%clk 0:02:52.8]} 9. Bh4 {[%clk 0:02:58.4]} 9... Nbd7 {[%clk 0:02:50]}
10. Bd3 {[%clk 0:02:57.8]} 10... Qc7 {[%clk 0:02:38.5]} 11. Bg3 {[%clk
0:02:51.1]} 11... a6 {[%clk 0:02:34.2]} 12. Rb1 {[%clk 0:02:47.7]} 12... Re8
{[%clk 0:02:20.9]} 13. b4 {[%clk 0:02:45.9]} 13... Nf8 {[%clk 0:01:40.7]} 14.
Bxd6 {[%clk 0:02:41.8]} 14... Qxd6 {[%clk 0:01:40.1]} 15. O-O {[%clk 0:02:42.3]}
15... Bd7 {[%clk 0:01:32.7]} 16. Na4 {[%clk 0:02:41.4]} 16... Ne4 {[%clk
0:01:23.2]} 17. Nc5 {[%clk 0:02:39.3]} 17... Nxc5 {[%clk 0:01:03.8]} 18. bxc5
{[%clk 0:02:38.8]} 18... Qc7 {[%clk 0:01:04.5]} 19. Rb2 {[%clk 0:02:34.6]} 19...
Bg4 {[%clk 0:00:54.5]} 20. Ne5 {[%clk 0:02:15.1]} 20... Be6 {[%clk 0:00:41.2]}
21. Rfb1 {[%clk 0:02:14.3]} 21... Re7 {[%clk 0:00:39]} 22. Rb3 {[%clk
0:01:57.6]} 22... Rae8 {[%clk 0:00:38.2]} 23. h3 {[%clk 0:01:42]} 23... Bc8
{[%clk 0:00:37.1]} 24. Bf5 {[%clk 0:01:40]} 24... Ne6 {[%clk 0:00:34.4]} 25.
Bh7+ {[%clk 0:01:18.3]} 25... Kh8 {[%clk 0:00:33.4]} 26. Bf5 {[%clk 0:01:14.2]}
26... Nxc5 {[%clk 0:00:20.1]} 27. dxc5 {[%clk 0:00:51]} 27... Qxe5 {[%clk
0:00:19.7]} 28. Bxc8 {[%clk 0:00:49.8]} 28... Rxc8 {[%clk 0:00:20.6]} 29. Rxb7
{[%clk 0:00:49.4]} 29... Rxb7 {[%clk 0:00:20.3]} 30. Rxb7 {[%clk 0:00:49.4]}
30... Qa1+ {[%clk 0:00:20.6]} 31. Kh2 {[%clk 0:00:49]} 31... Qe5+ {[%clk
0:00:21.3]} 32. g3 {[%clk 0:00:30.3]} 32... Kg8 {[%clk 0:00:21.4]} 33. Qb2
{[%clk 0:00:23.8]} 33... Qe4 {[%clk 0:00:17.7]} 34. Qd4 {[%clk 0:00:19.7]} 34...
Qc2 {[%clk 0:00:16.6]} 35. Rb2 {[%clk 0:00:14.1]} 35... Qf5 {[%clk 0:00:13.9]}
36. Kg2 {[%clk 0:00:13.2]} 36... Re8 {[%clk 0:00:12.7]} 37. Qf4 {[%clk
0:00:08.9]} 37... Qg6 {[%clk 0:00:11.7]} 38. Rb4 {[%clk 0:00:06.9]} 38... Rd8
{[%clk 0:00:09.6]} 39. Qc7 {[%clk 0:00:05.1]} 39... Re8 {[%clk 0:00:08.1]} 40.
Qf4 {[%clk 0:00:03.2]} 40... Qe6 {[%clk 0:00:07.9]} 41. Qf3 {[%clk 0:00:03]}
41... g6 {[%clk 0:00:07.5]} 42. Rb7 {[%clk 0:00:02.5]} 42... Kg7 {[%clk
0:00:06.9]} 43. Qf4 {[%clk 0:00:02.8]} 43... g5 {[%clk 0:00:05.6]} 44. Qd4+
{[%clk 0:00:03]} 44... Kg8 {[%clk 0:00:05.1]} 45. Ra7 {[%clk 0:00:02.4]} 45...
a5 {[%clk 0:00:04.7]} 46. Rxa5 {[%clk 0:00:02.3]} 46... Qf5 {[%clk 0:00:05.2]}
47. Ra7 {[%clk 0:00:01.8]} 47... Qe6 {[%clk 0:00:05.2]} 48. Qc3 {[%clk
0:00:01.3]} 48... h5 {[%clk 0:00:05.7]} 49. Kh2 {[%clk 0:00:01.4]} 49... Qf5
{[%clk 0:00:06.2]} 0-1

[Event "Early-Titled-Tuesday-Blitz-November-28-2023"]
[Site "Chess.com"]
[Date "2023.11.28"]
[Round "7"]
[White "Azerichess"]
[Black "Rud_Makarian"]
[Result "0-1"]
[WhiteElo "3038"]
[BlackElo "3000"]
[TimeControl "180+1"]
[EndTime "9:25:38 PST"]
[Termination "Rud_Makarian won by resignation"]

1. Nf3 {[%clk 0:02:54]} 1... Nf6 {[%clk 0:02:59.1]} 2. c4 {[%clk 0:02:54]} 2...
e6 {[%clk 0:02:58.7]} 3. b3 {[%clk 0:02:52.5]} 3... d5 {[%clk 0:02:59.3]} 4. e3
{[%clk 0:02:52.8]} 4... b6 {[%clk 0:02:59.4]} 5. Bb2 {[%clk 0:02:50.7]} 5... Bb7
{[%clk 0:02:59]} 6. cxd5 {[%clk 0:02:51.3]} 6... exd5 {[%clk 0:02:59.5]} 7. g3
{[%clk 0:02:52]} 7... Nbd7 {[%clk 0:02:57.5]} 8. Bg2 {[%clk 0:02:52.6]} 8... Bd6
{[%clk 0:02:51.2]} 9. Nd4 {[%clk 0:02:48.2]} 9... g6 {[%clk 0:02:44.4]} 10. O-O
{[%clk 0:02:47.9]} 10... O-O {[%clk 0:02:44.9]} 11. Nc3 {[%clk 0:02:47.7]} 11...
a6 {[%clk 0:02:44.9]} 12. Nde2 {[%clk 0:02:46.9]} 12... Rb8 {[%clk 0:02:28.5]}
13. Nf4 {[%clk 0:02:35.3]} 13... d4 {[%clk 0:02:28.4]} 14. exd4 {[%clk
0:02:34.6]} 14... Bxf4 {[%clk 0:02:11.2]} 15. Bxb7 {[%clk 0:02:35]} 15... Rxb7
{[%clk 0:02:11.1]} 16. Qf3 {[%clk 0:02:34]} 16... Bxg3 {[%clk 0:01:56]} 17. fxg3
{[%clk 0:02:21.4]} 17... Rb8 {[%clk 0:01:56.3]} 18. d5 {[%clk 0:02:17.8]} 18...
Qe7 {[%clk 0:01:51.5]} 19. Rae1 {[%clk 0:02:15.2]} 19... Qd6 {[%clk 0:01:49.6]}
20. d3 {[%clk 0:02:01.5]} 20... Rbe8 {[%clk 0:01:43]} 21. Ne4 {[%clk 0:02:00]}
21... Nxe4 {[%clk 0:01:42.2]} 22. dxe4 {[%clk 0:02:00.4]} 22... f6 {[%clk
0:01:20.3]} 23. Rc1 {[%clk 0:01:59.8]} 23... Nc5 {[%clk 0:01:16.3]} 24. Rfe1
{[%clk 0:01:54.9]} 24... a5 {[%clk 0:01:08.9]} 25. Bd4 {[%clk 0:01:53.6]} 25...
Rf7 {[%clk 0:01:04.6]} 26. Rc4 {[%clk 0:01:37]} 26... Nd7 {[%clk 0:00:52.4]} 27.
Qf4 {[%clk 0:01:26.2]} 27... Ne5 {[%clk 0:00:47.9]} 28. Rc3 {[%clk 0:01:16.5]}
28... c5 {[%clk 0:00:45.9]} 29. Bxe5 {[%clk 0:01:01.2]} 29... Rxe5 {[%clk
0:00:42.5]} 30. Rce3 {[%clk 0:00:59.1]} 30... Kg7 {[%clk 0:00:42.5]} 31. a4
{[%clk 0:00:58.9]} 31... Rfe7 {[%clk 0:00:41.5]} 32. Kg2 {[%clk 0:00:57.3]}
32... h5 {[%clk 0:00:40.1]} 33. Qf3 {[%clk 0:00:56.4]} 33... Rf7 {[%clk
0:00:31.9]} 34. Qf4 {[%clk 0:00:55.9]} 34... Rfe7 {[%clk 0:00:32.3]} 35. Qf3
{[%clk 0:00:56.3]} 35... Rf7 {[%clk 0:00:32.4]} 36. h3 {[%clk 0:00:56.8]} 36...
Rfe7 {[%clk 0:00:30.5]} 37. h4 {[%clk 0:00:55.1]} 37... Rf7 {[%clk 0:00:26.4]}
38. Qf4 {[%clk 0:00:55.2]} 38... Rfe7 {[%clk 0:00:27.1]} 39. Qf3 {[%clk
0:00:55.5]} 39... Rf7 {[%clk 0:00:27.1]} 40. R1e2 {[%clk 0:00:53.6]} 40... Rfe7
{[%clk 0:00:27.8]} 41. Qf4 {[%clk 0:00:50.2]} 41... Rf7 {[%clk 0:00:26]} 42. Kg1
{[%clk 0:00:44.4]} 42... Rfe7 {[%clk 0:00:26.4]} 43. Kh1 {[%clk 0:00:43.4]}
43... Rf7 {[%clk 0:00:26.4]} 44. g4 {[%clk 0:00:37.7]} 44... Rxd5 {[%clk
0:00:21.9]} 45. Qxd6 {[%clk 0:00:37.2]} 45... Rxd6 {[%clk 0:00:22.7]} 46. gxh5
{[%clk 0:00:38.1]} 46... gxh5 {[%clk 0:00:23.2]} 47. Rg2+ {[%clk 0:00:37.9]}
47... Kh7 {[%clk 0:00:22.3]} 48. Rf2 {[%clk 0:00:33.6]} 48... Re6 {[%clk
0:00:18.7]} 49. Kh2 {[%clk 0:00:29.9]} 49... Rfe7 {[%clk 0:00:18.1]} 50. Rf4
{[%clk 0:00:25.6]} 50... Kg6 {[%clk 0:00:18.4]} 51. Rg3+ {[%clk 0:00:25.4]}
51... Kf7 {[%clk 0:00:18.6]} 52. Rf5 {[%clk 0:00:25.8]} 52... Re5 {[%clk
0:00:18]} 53. Rgf3 {[%clk 0:00:24.1]} 53... Rxf5 {[%clk 0:00:17.3]} 54. Rxf5
{[%clk 0:00:25]} 54... Rxe4 {[%clk 0:00:17]} 55. Rxh5 {[%clk 0:00:25]} 55... Rb4
{[%clk 0:00:17.6]} 56. Rh7+ {[%clk 0:00:25.2]} 56... Kg6 {[%clk 0:00:18.2]} 0-1

[Event "Early-Titled-Tuesday-Blitz-November-28-2023"]
[Site "Chess.com"]
[Date "2023.11.28"]
[Round "7"]
[White "Rsnr"]
[Black "Pastore1978"]
[Result "1-0"]
[WhiteElo "2905"]
[BlackElo "2489"]
[TimeControl "180+1"]
[EndTime "9:25:41 PST"]
[Termination "Rsnr won by resignation"]

1. d4 {[%clk 0:03:00.9]} 1... d5 {[%clk 0:02:59.7]} 2. Nf3 {[%clk 0:03:01.1]}
2... Nf6 {[%clk 0:02:58.9]} 3. c4 {[%clk 0:03:01.5]} 3... e6 {[%clk 0:02:58.7]}
4. e3 {[%clk 0:03:01.6]} 4... c6 {[%clk 0:02:57.6]} 5. b3 {[%clk 0:03:02]} 5...
Nbd7 {[%clk 0:02:57.7]} 6. Bd3 {[%clk 0:03:02.4]} 6... Bd6 {[%clk 0:02:58.1]} 7.
O-O {[%clk 0:03:03]} 7... O-O {[%clk 0:02:58.4]} 8. Bb2 {[%clk 0:03:03.7]} 8...
b6 {[%clk 0:02:57.8]} 9. Nbd2 {[%clk 0:03:02]} 9... Bb7 {[%clk 0:02:58.1]} 10.
Qe2 {[%clk 0:03:01.8]} 10... Qe7 {[%clk 0:02:58.5]} 11. Ne5 {[%clk 0:02:58.3]}
11... c5 {[%clk 0:02:49.3]} 12. Rfd1 {[%clk 0:02:54.4]} 12... Rfd8 {[%clk
0:02:40.6]} 13. Rac1 {[%clk 0:02:50.2]} 13... Rac8 {[%clk 0:02:40.6]} 14. h3
{[%clk 0:02:43.5]} 14... h6 {[%clk 0:02:38.5]} 15. cxd5 {[%clk 0:02:31.6]} 15...
exd5 {[%clk 0:02:37.2]} 16. Bf5 {[%clk 0:02:29.9]} 16... Rc7 {[%clk 0:02:22.9]}
17. Nxd7 {[%clk 0:02:18.7]} 17... Nxd7 {[%clk 0:02:23.8]} 18. dxc5 {[%clk
0:02:19]} 18... Nxc5 {[%clk 0:02:20.8]} 19. Nf3 {[%clk 0:02:09.5]} 19... Ne4
{[%clk 0:02:08.8]} 20. Rxc7 {[%clk 0:02:08.8]} 20... Bxc7 {[%clk 0:02:08.4]} 21.
Qc2 {[%clk 0:01:54]} 21... Bc8 {[%clk 0:01:19.3]} 22. Bxe4 {[%clk 0:01:25.8]}
22... dxe4 {[%clk 0:01:18.1]} 23. Rxd8+ {[%clk 0:00:48]} 23... Qxd8 {[%clk
0:01:19]} 24. Nd4 {[%clk 0:00:48.1]} 24... Qd6 {[%clk 0:01:00.3]} 25. g3 {[%clk
0:00:37.9]} 25... Bxh3 {[%clk 0:00:17.2]} 26. Qxe4 {[%clk 0:00:37.7]} 26... Bd8
{[%clk 0:00:10.5]} 27. Qe8+ {[%clk 0:00:29.4]} 27... Kh7 {[%clk 0:00:10.5]} 28.
Qxf7 {[%clk 0:00:26.8]} 28... Qg6 {[%clk 0:00:08]} 29. Qxg6+ {[%clk 0:00:26]}
29... Kxg6 {[%clk 0:00:08.9]} 30. Nc6 {[%clk 0:00:26.8]} 30... Bc7 {[%clk
0:00:07.3]} 31. Nxa7 {[%clk 0:00:27]} 31... Bd7 {[%clk 0:00:08]} 32. Bd4 {[%clk
0:00:20]} 32... Kf7 {[%clk 0:00:06.5]} 33. e4 {[%clk 0:00:19.9]} 33... g5 {[%clk
0:00:06]} 34. a4 {[%clk 0:00:16.4]} 34... Ke6 {[%clk 0:00:05.4]} 35. Nb5 {[%clk
0:00:14.4]} 35... Bxb5 {[%clk 0:00:05.3]} 36. axb5 {[%clk 0:00:15.3]} 36... Kd6
{[%clk 0:00:04.8]} 37. f3 {[%clk 0:00:14.9]} 37... h5 {[%clk 0:00:04.9]} 38. Kg2
{[%clk 0:00:15]} 38... Ke6 {[%clk 0:00:04.4]} 39. Be3 {[%clk 0:00:15.5]} 39...
Bd8 {[%clk 0:00:03.9]} 40. f4 {[%clk 0:00:15.2]} 40... g4 {[%clk 0:00:03.9]} 41.
Bd4 {[%clk 0:00:15.6]} 41... Kf7 {[%clk 0:00:01.3]} 42. f5 {[%clk 0:00:15.9]}
42... Ke7 {[%clk 0:00:01.5]} 43. e5 {[%clk 0:00:16.4]} 43... Kf7 {[%clk
0:00:02]} 44. e6+ {[%clk 0:00:16.9]} 44... Ke7 {[%clk 0:00:02.2]} 45. Be5 {[%clk
0:00:13]} 45... Kf8 {[%clk 0:00:01.3]} 46. Bd6+ {[%clk 0:00:12.8]} 46... Ke8
{[%clk 0:00:01.4]} 47. Kf2 {[%clk 0:00:11.3]} 47... Bf6 {[%clk 0:00:01.7]} 48.
Ke3 {[%clk 0:00:11]} 48... Be5 {[%clk 0:00:02]} 49. Bxe5 {[%clk 0:00:10.9]}
49... h4 {[%clk 0:00:02.7]} 50. gxh4 {[%clk 0:00:11.1]} 50... g3 {[%clk
0:00:03.4]} 51. Bxg3 {[%clk 0:00:11.5]} 1-0

[Event "Early-Titled-Tuesday-Blitz-November-28-2023"]
[Site "Chess.com"]
[Date "2023.11.28"]
[Round "7"]
[White "MightyGMpretender"]
[Black "jens1102"]
[Result "1-0"]
[WhiteElo "2822"]
[BlackElo "2624"]
[TimeControl "180+1"]
[EndTime "9:25:42 PST"]
[Termination "MightyGMpretender won by resignation"]

1. Nf3 {[%clk 0:03:00.1]} 1... Nf6 {[%clk 0:03:00]} 2. g3 {[%clk 0:03:00.1]}
2... g6 {[%clk 0:03:00]} 3. Bg2 {[%clk 0:03:00.8]} 3... Bg7 {[%clk 0:03:00.7]}
4. O-O {[%clk 0:03:01.3]} 4... O-O {[%clk 0:03:01.4]} 5. d3 {[%clk 0:03:00.5]}
5... d5 {[%clk 0:03:00.7]} 6. Nbd2 {[%clk 0:03:00]} 6... Nc6 {[%clk 0:02:57.9]}
7. c4 {[%clk 0:02:57.7]} 7... dxc4 {[%clk 0:02:50.6]} 8. Nxc4 {[%clk 0:02:57.5]}
8... Nd5 {[%clk 0:02:49]} 9. a3 {[%clk 0:02:50.1]} 9... Nb6 {[%clk 0:02:47.2]}
10. Qc2 {[%clk 0:02:38.6]} 10... Nxc4 {[%clk 0:02:45.4]} 11. dxc4 {[%clk
0:02:32.4]} 11... e5 {[%clk 0:02:46.3]} 12. Be3 {[%clk 0:02:26.5]} 12... f6
{[%clk 0:02:42.2]} 13. b4 {[%clk 0:02:18.7]} 13... Bf5 {[%clk 0:02:40.7]} 14.
Qb3 {[%clk 0:02:17.1]} 14... Be6 {[%clk 0:02:25.3]} 15. Rfd1 {[%clk 0:02:06.5]}
15... Qe8 {[%clk 0:02:23.6]} 16. Rac1 {[%clk 0:02:06.9]} 16... b5 {[%clk
0:02:21.6]} 17. Nd2 {[%clk 0:02:01.6]} 17... Rd8 {[%clk 0:02:19]} 18. Qb2 {[%clk
0:01:58.2]} 18... Nd4 {[%clk 0:02:10.4]} 19. Bxd4 {[%clk 0:01:57]} 19... Rxd4
{[%clk 0:02:08.9]} 20. cxb5 {[%clk 0:01:51.2]} 20... Qxb5 {[%clk 0:02:09.8]} 21.
Nb3 {[%clk 0:01:45.6]} 21... Rxd1+ {[%clk 0:01:56.4]} 22. Rxd1 {[%clk
0:01:46.5]} 22... f5 {[%clk 0:01:52.8]} 23. Qc2 {[%clk 0:01:30]} 23... e4 {[%clk
0:01:40.9]} 24. e3 {[%clk 0:01:25.9]} 24... Qa4 {[%clk 0:01:31.8]} 25. Nd4
{[%clk 0:01:17.2]} 25... Qxc2 {[%clk 0:01:29.4]} 26. Nxc2 {[%clk 0:01:17.8]}
26... Bb3 {[%clk 0:01:28.6]} 27. Rc1 {[%clk 0:01:17.7]} 27... Rd8 {[%clk
0:01:03.3]} 28. Bf1 {[%clk 0:01:17.4]} 28... Bb2 {[%clk 0:00:53.5]} 29. Rb1
{[%clk 0:01:16.8]} 29... Bxc2 {[%clk 0:00:53.7]} 30. Rxb2 {[%clk 0:01:17.4]}
30... Ba4 {[%clk 0:00:30.1]} 31. Be2 {[%clk 0:01:09.6]} 31... Kf7 {[%clk
0:00:29.9]} 32. Kf1 {[%clk 0:01:10.1]} 32... Ke6 {[%clk 0:00:30.1]} 33. Ke1
{[%clk 0:01:10.8]} 33... Ke5 {[%clk 0:00:29.8]} 34. Rd2 {[%clk 0:01:08.4]} 34...
Rd5 {[%clk 0:00:25.9]} 35. Bc4 {[%clk 0:01:06]} 35... Rxd2 {[%clk 0:00:24.5]}
36. Kxd2 {[%clk 0:01:06.9]} 36... Kd6 {[%clk 0:00:19.1]} 37. Kc3 {[%clk
0:00:51.7]} 37... c5 {[%clk 0:00:19.4]} 38. h4 {[%clk 0:00:47.3]} 38... cxb4+
{[%clk 0:00:18.3]} 39. Kxb4 {[%clk 0:00:47.2]} 39... Bd1 {[%clk 0:00:17.8]} 40.
Bg8 {[%clk 0:00:45.3]} 40... h6 {[%clk 0:00:17.3]} 41. Bh7 {[%clk 0:00:45.8]}
41... Bh5 {[%clk 0:00:16.6]} 42. Kb5 {[%clk 0:00:41.5]} 42... Kc7 {[%clk
0:00:16.4]} 43. Kc5 {[%clk 0:00:41.7]} 43... a6 {[%clk 0:00:12.7]} 44. a4 {[%clk
0:00:37.1]} 44... Kd7 {[%clk 0:00:12.5]} 45. a5 {[%clk 0:00:36.1]} 45... Ke7
{[%clk 0:00:12.7]} 46. Bg8 {[%clk 0:00:36.2]} 46... Be2 {[%clk 0:00:11.7]} 47.
Bd5 {[%clk 0:00:23.8]} 47... g5 {[%clk 0:00:10.6]} 48. hxg5 {[%clk 0:00:23.9]}
48... hxg5 {[%clk 0:00:11.5]} 49. Bb7 {[%clk 0:00:23.5]} 49... Ke6 {[%clk
0:00:05.4]} 50. Kb6 {[%clk 0:00:23.1]} 50... Kd6 {[%clk 0:00:05.9]} 51. Bc8
{[%clk 0:00:21.4]} 51... Ke5 {[%clk 0:00:04.9]} 52. Bxa6 {[%clk 0:00:21.3]}
52... Bd1 {[%clk 0:00:03.7]} 53. Bb5 {[%clk 0:00:19.6]} 53... f4 {[%clk
0:00:01.7]} 54. gxf4+ {[%clk 0:00:19.3]} 54... gxf4 {[%clk 0:00:02.6]} 55. a6
{[%clk 0:00:19.9]} 55... Bc2 {[%clk 0:00:03]} 56. a7 {[%clk 0:00:19.3]} 56...
Bd3 {[%clk 0:00:03.6]} 57. a8=Q {[%clk 0:00:19.3]} 1-0

[Event "Early-Titled-Tuesday-Blitz-November-28-2023"]
[Site "Chess.com"]
[Date "2023.11.28"]
[Round "7"]
[White "IwkooO"]
[Black "Sychev_on_YouTube"]
[Result "1-0"]
[WhiteElo "2688"]
[BlackElo "2907"]
[TimeControl "180+1"]
[EndTime "9:25:44 PST"]
[Termination "IwkooO won on time"]

1. e4 {[%clk 0:03:00.9]} 1... e5 {[%clk 0:02:59.8]} 2. Nf3 {[%clk 0:03:00.8]}
2... Nc6 {[%clk 0:03:00.2]} 3. Bb5 {[%clk 0:03:00.5]} 3... a6 {[%clk 0:03:00.7]}
4. Ba4 {[%clk 0:03:00.2]} 4... f5 {[%clk 0:03:00.8]} 5. d3 {[%clk 0:02:58.2]}
5... fxe4 {[%clk 0:03:00.8]} 6. dxe4 {[%clk 0:02:59.1]} 6... Nf6 {[%clk
0:03:01.3]} 7. Nc3 {[%clk 0:02:58.8]} 7... Bb4 {[%clk 0:03:00.8]} 8. Bg5 {[%clk
0:02:57]} 8... Bxc3+ {[%clk 0:02:59.3]} 9. bxc3 {[%clk 0:02:57.9]} 9... O-O
{[%clk 0:02:54.2]} 10. O-O {[%clk 0:02:58.4]} 10... d6 {[%clk 0:02:50.3]} 11.
Qd5+ {[%clk 0:02:55.3]} 11... Nxd5 {[%clk 0:02:38.4]} 12. Bxd8 {[%clk
0:02:55.1]} 12... Rxd8 {[%clk 0:02:14]} 13. Bb3 {[%clk 0:02:42.7]} 13... Ne7
{[%clk 0:02:08.9]} 14. exd5 {[%clk 0:02:43]} 14... h6 {[%clk 0:02:01.3]} 15.
Rfe1 {[%clk 0:02:42.7]} 15... Ng6 {[%clk 0:01:59.5]} 16. c4 {[%clk 0:02:39.5]}
16... b6 {[%clk 0:01:59]} 17. Ba4 {[%clk 0:02:34.9]} 17... Bf5 {[%clk
0:01:53.2]} 18. Nd2 {[%clk 0:02:29.9]} 18... Rf8 {[%clk 0:01:49.5]} 19. Nf1
{[%clk 0:02:29.8]} 19... Nf4 {[%clk 0:01:45.8]} 20. Ne3 {[%clk 0:02:28.2]} 20...
Bg6 {[%clk 0:01:45.5]} 21. Rad1 {[%clk 0:02:16.6]} 21... Rf7 {[%clk 0:01:42.6]}
22. Rd2 {[%clk 0:02:14.7]} 22... Raf8 {[%clk 0:01:42]} 23. Bc6 {[%clk
0:02:05.2]} 23... Bh7 {[%clk 0:01:37.2]} 24. a4 {[%clk 0:01:52.3]} 24... a5
{[%clk 0:01:36.6]} 25. c5 {[%clk 0:01:49.8]} 25... dxc5 {[%clk 0:01:21.8]} 26.
Nc4 {[%clk 0:01:47.2]} 26... e4 {[%clk 0:01:09.5]} 27. d6 {[%clk 0:01:19.1]}
27... cxd6 {[%clk 0:01:08.4]} 28. g3 {[%clk 0:01:19]} 28... Rc7 {[%clk
0:00:35.8]} 29. Rxd6 {[%clk 0:01:05.4]} 29... Nh3+ {[%clk 0:00:32.1]} 30. Kg2
{[%clk 0:01:05.7]} 30... Ng5 {[%clk 0:00:16]} 31. Bd5+ {[%clk 0:01:02.7]} 31...
Kh8 {[%clk 0:00:15.4]} 32. Rxb6 {[%clk 0:00:41.9]} 32... Bf5 {[%clk 0:00:14.1]}
33. h4 {[%clk 0:00:23.5]} 33... Bh3+ {[%clk 0:00:14.1]} 34. Kh1 {[%clk
0:00:23.8]} 34... Nh7 {[%clk 0:00:10.1]} 35. Kg1 {[%clk 0:00:21.6]} 35... Nf6
{[%clk 0:00:08.5]} 36. Be6 {[%clk 0:00:20.6]} 36... Bg4 {[%clk 0:00:04.5]} 37.
Ne5 {[%clk 0:00:18.5]} 37... Bxe6 {[%clk 0:00:03.3]} 38. Ng6+ {[%clk 0:00:18.9]}
38... Kg8 {[%clk 0:00:03.5]} 39. Nxf8 {[%clk 0:00:18]} 39... Bc8 {[%clk
0:00:02.2]} 40. Ne6 {[%clk 0:00:18]} 40... Bxe6 {[%clk 0:00:01.8]} 41. Rxe6
{[%clk 0:00:18.3]} 41... Kf7 {[%clk 0:00:02.1]} 42. Ra6 {[%clk 0:00:18.6]} 42...
Rd7 {[%clk 0:00:02.1]} 43. Rxa5 {[%clk 0:00:18.7]} 43... c4 {[%clk 0:00:02.7]}
44. Rc5 {[%clk 0:00:17]} 44... Rd4 {[%clk 0:00:02.9]} 45. a5 {[%clk 0:00:16.7]}
45... Nd7 {[%clk 0:00:03.1]} 46. Rc7 {[%clk 0:00:16.3]} 46... Ke8 {[%clk
0:00:03.3]} 47. a6 {[%clk 0:00:16.4]} 47... Kd8 {[%clk 0:00:03.8]} 48. a7 {[%clk
0:00:14.2]} 48... Nb6 {[%clk 0:00:03.6]} 49. Rb7 {[%clk 0:00:13.9]} 1-0

[Event "Early-Titled-Tuesday-Blitz-November-28-2023"]
[Site "Chess.com"]
[Date "2023.11.28"]
[Round "7"]
[White "Witik"]
[Black "RodokininEV"]
[Result "0-1"]
[WhiteElo "2787"]
[BlackElo "2626"]
[TimeControl "180+1"]
[EndTime "9:25:45 PST"]
[Termination "RodokininEV won on time"]

1. e4 {[%clk 0:02:59]} 1... c5 {[%clk 0:02:54.5]} 2. d4 {[%clk 0:02:58.9]} 2...
cxd4 {[%clk 0:02:53.7]} 3. c3 {[%clk 0:02:59.6]} 3... dxc3 {[%clk 0:02:54.5]} 4.
Nxc3 {[%clk 0:03:00.5]} 4... e6 {[%clk 0:02:50.3]} 5. Nf3 {[%clk 0:03:00.5]}
5... a6 {[%clk 0:02:51.2]} 6. Bc4 {[%clk 0:03:00.1]} 6... Nc6 {[%clk 0:02:51.5]}
7. O-O {[%clk 0:02:59.8]} 7... b5 {[%clk 0:02:51.6]} 8. Bb3 {[%clk 0:02:59.5]}
8... Bb7 {[%clk 0:02:52.1]} 9. Re1 {[%clk 0:02:56.8]} 9... Na5 {[%clk
0:02:50.9]} 10. Bf4 {[%clk 0:02:51.8]} 10... Ne7 {[%clk 0:02:45.2]} 11. Bd6
{[%clk 0:02:40]} 11... Nxb3 {[%clk 0:02:35.7]} 12. axb3 {[%clk 0:02:39.5]} 12...
Ng6 {[%clk 0:02:36]} 13. Rc1 {[%clk 0:02:30.7]} 13... Bxd6 {[%clk 0:02:32.4]}
14. Qxd6 {[%clk 0:02:30.2]} 14... Qe7 {[%clk 0:02:33]} 15. Qb6 {[%clk
0:02:23.6]} 15... Bc6 {[%clk 0:02:22.9]} 16. Nd4 {[%clk 0:02:21]} 16... Qd8
{[%clk 0:02:17.4]} 17. Qc5 {[%clk 0:02:15]} 17... Ne7 {[%clk 0:02:17]} 18. Re3
{[%clk 0:02:03.3]} 18... O-O {[%clk 0:02:08.8]} 19. Rd1 {[%clk 0:01:55]} 19...
Rc8 {[%clk 0:02:02]} 20. Qh5 {[%clk 0:01:53.4]} 20... Qb6 {[%clk 0:01:50.2]} 21.
Rh3 {[%clk 0:01:49]} 21... h6 {[%clk 0:01:50.3]} 22. Rg3 {[%clk 0:01:48.6]}
22... Ng6 {[%clk 0:01:49.8]} 23. h4 {[%clk 0:01:42.3]} 23... Rfd8 {[%clk
0:01:41.1]} 24. Qg4 {[%clk 0:01:38.4]} 24... h5 {[%clk 0:01:22.6]} 25. Qxh5
{[%clk 0:01:37.4]} 25... Qc7 {[%clk 0:01:23]} 26. Nxc6 {[%clk 0:01:04]} 26...
dxc6 {[%clk 0:01:23.9]} 27. Rxd8+ {[%clk 0:01:02.6]} 27... Rxd8 {[%clk
0:01:23.6]} 28. Qg5 {[%clk 0:01:03]} 28... Qe7 {[%clk 0:01:17.4]} 29. h5 {[%clk
0:00:44.4]} 29... Qxg5 {[%clk 0:01:12.7]} 30. Rxg5 {[%clk 0:00:45.3]} 30... Ne7
{[%clk 0:01:10.2]} 31. b4 {[%clk 0:00:33.1]} 31... Rd2 {[%clk 0:01:03.9]} 32. e5
{[%clk 0:00:21.1]} 32... Rxb2 {[%clk 0:00:55.2]} 33. h6 {[%clk 0:00:21.5]} 33...
Ng6 {[%clk 0:00:49.7]} 34. hxg7 {[%clk 0:00:12.5]} 34... Kxg7 {[%clk 0:00:50.6]}
35. Ne4 {[%clk 0:00:09.1]} 35... Re2 {[%clk 0:00:40.7]} 36. f3 {[%clk 0:00:06]}
36... Rb2 {[%clk 0:00:30.4]} 37. Rh5 {[%clk 0:00:04.4]} 37... Rxb4 {[%clk
0:00:28.3]} 38. g3 {[%clk 0:00:04.9]} 38... Rxe4 {[%clk 0:00:23.4]} 39. fxe4
{[%clk 0:00:05.1]} 39... a5 {[%clk 0:00:24.2]} 40. Kf2 {[%clk 0:00:05.4]} 40...
a4 {[%clk 0:00:21.1]} 41. Ke3 {[%clk 0:00:06]} 41... c5 {[%clk 0:00:19]} 42. Kd3
{[%clk 0:00:03.7]} 42... Ne7 {[%clk 0:00:10.4]} 43. Kc3 {[%clk 0:00:04.2]} 43...
Nc6 {[%clk 0:00:10.3]} 44. g4 {[%clk 0:00:03.5]} 44... Nd4 {[%clk 0:00:08.7]}
45. Rg5+ {[%clk 0:00:03.4]} 45... Kf8 {[%clk 0:00:08.7]} 46. Rh5 {[%clk
0:00:04]} 46... Ke7 {[%clk 0:00:08.8]} 47. Rh8 {[%clk 0:00:03.1]} 47... b4+
{[%clk 0:00:08.9]} 48. Kc4 {[%clk 0:00:03.3]} 48... b3 {[%clk 0:00:09]} 49. Rb8
{[%clk 0:00:03.2]} 49... a3 {[%clk 0:00:08.4]} 50. Kxc5 {[%clk 0:00:03.4]} 50...
b2 {[%clk 0:00:07.5]} 51. Rb7+ {[%clk 0:00:02.7]} 51... Kf8 {[%clk 0:00:07.1]}
52. Kxd4 {[%clk 0:00:02.8]} 52... a2 {[%clk 0:00:07.1]} 0-1